Cogmind - Beta 14 @@@ ROGUE MODE // 2025.05.05 @ 17:38:02 Player: gallo Result: Self-destructed Performance ------------- Evolutions (2) 1000 Regions Visited (4) 800 Robots Destroyed (42) 210 Value Destroyed (1178) 1178 Prototype IDs (1) 20 Alien Tech Used (0) 0 Bonus (216) 216 TOTAL SCORE: 3424 Bonus ------- High Alert Combat Kills 16 Entered Garrisons 200 Cogmind --------- Core Integrity 142/550 Matter 300/300 Energy 160/160 System Corruption 9% Temperature Cool (0) Movement Core (300) Ox5 Location -8/Garrison Parts ------- > --- POWER (2) -------- Light Nuclear Core > --- PROPULSION (3) --- (None) > --- UTILITY (3) ------ Improved Heat Sink Medium Storage Unit Improved Targeting Computer > --- WEAPON (3) ------- (None) > --- INVENTORY (10) --- Compact Wheel Improved Heat Sink Improved Heat Sink Reaction Control System Shield Generator Peak State ------------ > --- POWER ------------ Nuclear Core Nuclear Core > --- PROPULSION ------- Aluminum Leg Wheel Compact Wheel > --- UTILITY ---------- Improved Heat Sink Medium Storage Unit Improved Targeting Computer > --- WEAPON ----------- Pulse Rifle Ion Cannon Ion Cannon > --- INVENTORY -------- Nuclear Core Improved Heat Sink Improved Signal Interpreter Reaction Control System Shield Generator Heavy EM Pulse Gun Medium Laser Improved Medium Laser Pulse Rifle Grenade Launcher [Rating: 26] Favorites ----------- Power Ion Engine Engine Ion Engine Power Core Nuclear Core Propulsion Light Treads Treads Light Treads Leg Improved Aluminum Leg Wheel Compact Wheel Utility Small Storage Unit Device Shield Generator Storage Small Storage Unit Processor Improved Targeting Computer Weapon Medium Laser Energy Gun Medium Laser Energy Cannon Ion Cannon Ballistic Gun Assault Rifle Launcher Grenade Launcher Build | -11 -10 -9 -8 -8 ------- Run | Yrd Mat Mat Mat Gar Slots Evolved 4 | . . 2 2 . Power 1 | . . . 1 . Propulsion 1 | . . . 1 . Utility 1 | . . 1 . . Weapon 1 | . . 1 . . Parts Attached 63 | 8 13 24 1 17 Power 9 | 1 1 2 1 4 Engine 4 | 1 1 1 . 1 Core 5 | . . 1 1 3 Reactor . | . . . . . Propulsion 22 | 4 5 9 . 4 Treads 5 | 2 3 . . . Leg 9 | . . 5 . 4 Wheel 8 | 2 2 4 . . Hover . | . . . . . Flight . | . . . . . Utility 10 | 1 3 5 . 1 Device 5 | . 2 2 . 1 Storage 4 | 1 1 2 . . Processor 1 | . . 1 . . Hackware . | . . . . . Protection . | . . . . . Artifact . | . . . . . Weapon 22 | 2 4 8 . 8 Energy Gun 11 | 1 2 2 . 6 Energy Cannon 3 | . . 2 . 1 Ballistic Gun 5 | 1 2 2 . . Ballistic Cannon . | . . . . . Launcher 3 | . . 2 . 1 Special Weapon . | . . . . . Impact Weapon . | . . . . . Slashing Weapon . | . . . . . Piercing Weapon . | . . . . . Special Melee Weapon . | . . . . . Unidentified Prototypes 1 | . . . . 1 Parts Lost 16 | . . . . 16 Power 4 | . . . . 4 Propulsion 3 | . . . . 3 Utility . | . . . . . Weapon 9 | . . . . 9 Highest Loss Streak 12 | . . . . 12 To Critical Strikes 2 | . . . . 2 Average Slot Usage (%) 94 | . 97 99 90 76 Engine 9 | . 14 8 . 1 Core 3 | . . 2 18 12 Treads 12 | . 27 . . . Leg 5 | . . 10 . 9 Wheel 5 | . . 11 18 5 Device 10 | . 11 11 9 9 Storage 12 | . 14 11 9 9 Processor 5 | . . 10 9 9 Energy Gun 13 | . 18 11 9 9 Energy Cannon 6 | . . 12 18 9 Ballistic Gun 6 | . 9 7 . . Peak Build Rating 26 | 6 10 22 25 26 Average Rating 13 | 4 8 16 25 19 On Entrance 12 | . 6 10 22 25 Naked Turns . | . . . . . Heaviest Build 40 | 11 17 33 40 40 Greatest Support 40 | 40 40 26 26 26 Greatest Overweight (x) 4 | . 4 1 1 2 Average Overweight (x) . | . . . 1 1 Largest Inventory Capacity 10 | 8 8 10 10 10 Average Capacity 8 | 7 8 8 10 10 Most Carried 10 | 6 8 10 10 10 Average Carried 7 | 3 7 7 9 6 Final Capacity 10 | 8 8 10 10 10 Final Carried 10 | 6 8 10 10 5 Class Distribution -------------------- 51% | Mutant 44% | Gunner 3% | Scavenger-Mutant Dominant Class ---------------- Mutant | -10/Materials Gunner | -9/Materials Gunner | -8/Materials Gunner | -8/Garrison Resources | -11 -10 -9 -8 -8 ----------- Run | Yrd Mat Mat Mat Gar Matter Collected 1202 | 227 304 540 . 131 Remotely . | . . . . . Salvage Created 1633 | . 388 913 . 332 Parts 83 | . 13 56 . 14 Haulers Intercepted 1 | . . 1 . . Recyclers Shooed 1 | . . 1 . . Parts Field Recycled . | . . . . . Retrieved Matter . | . . . . . Parts Self-Destructed . | . . . . . Prevented . | . . . . . Kills | -11 -10 -9 -8 -8 ------- Run | Yrd Mat Mat Mat Gar Combat Hostiles Destroyed 41 | . 5 22 . 14 Guns 18 | . 5 7 . 6 Cannons 10 | . . 6 . 4 AOE 13 | . . 9 . 4 Classes Destroyed 10 | . 3 5 . 2 Worker 2 | . 2 . . . Hauler 1 | . . 1 . . Recycler 4 | . 2 2 . . Watcher 3 | . . 3 . . Swarmer 7 | . . 7 . . Grunt 19 | . 5 12 . 2 Brawler 1 | . . 1 . . Sentry 3 | . . 2 . 1 Programmer 2 | . . . . 2 Assembled 9 | . . . . 9 Best Kill Streak 5 | . 2 5 . 4 Combat Bots Only 5 | . 2 5 . 4 Max Kills in Single Turn 3 | . 1 3 . 2 Gunslinging . | . . . . . Exploded 3 | . . 3 . 2 Melee . | . . . . . Uniques/NPCs Destroyed . | . . . . . Combat | -11 -10 -9 -8 -8 -------- Run | Yrd Mat Mat Mat Gar Hostile Shots Fired 253 | . 42 83 . 128 Missed 74 | . 10 31 . 33 Damage Taken 2425 | . 313 436 . 1676 Core 529 | . 68 53 . 408 Absorbed by Shields 231 | . 106 87 . 38 Core Remaining (%) 86 | 100 72 86 . . Volleys Fired 114 | . 35 37 . 42 Largest 3 | . 2 3 . 3 Hottest 186 | . 115 170 . 186 Shots Fired 261 | . 70 108 . 83 Gun 194 | . 70 70 . 54 Cannon 57 | . . 31 . 26 Launcher 10 | . . 7 . 3 Special . | . . . . . Kinetic 54 | . 19 35 . . Thermal 184 | . 51 66 . 67 Explosive 10 | . . 7 . 3 Electromagnetic 13 | . . . . 13 Robot Hit Streak 9 | . 9 6 . 6 Robot Miss Streak 4 | . 2 4 . 4 Penetration Max . | . . . . . Secondary Targets 1 | . . 1 . . Max Gunslinging Chain 1 | . . 1 . . Shots Hit Robots 147 | . 49 53 . 45 Core Hits 85 | . 17 41 . 27 Critical Kills . | . . . . . Critical Parts Destroyed . | . . . . . Critical Strikes 5 | . 2 1 . 2 Burn 5 | . 2 1 . 2 Melee Attacks . | . . . . . Impact . | . . . . . Slashing . | . . . . . Piercing . | . . . . . Sneak Attacks . | . . . . . Combat Hostiles . | . . . . . Follow-up Attacks . | . . . . . Damage Inflicted 2776 | . 633 1221 . 922 Guns 1543 | . 625 459 . 459 Cannons 603 | . . 320 . 283 Explosions 612 | . . 441 . 171 Melee . | . . . . . Ramming 18 | . 8 1 . 9 Kinetic 402 | . 130 272 . . Thermal 1669 | . 495 507 . 667 Explosive 612 | . . 441 . 171 Electromagnetic 75 | . . . . 75 Impact . | . . . . . Slashing . | . . . . . Piercing . | . . . . . Highest Corruption 9 | . . . . 9 Average Corruption 5 | . . . . 5 Corruption Purged . | . . . . . Corruption Blocked . | . . . . . Effects 3 | . . . . 3 Matter Fused 2 | . . . . 2 Data Loss (minor) 1 | . . . . 1 Overload Shots . | . . . . . Overflow Damage 16 | . . 16 . . Projectiles 16 | . . 16 . . Explosions . | . . . . . Melee . | . . . . . Knockbacks . | . . . . . Impact . | . . . . . Kinetic . | . . . . . Secondary . | . . . . . Self-Inflicted Damage 86 | . . 13 . 73 Shots 4 | . . 1 . 3 Rammed 10 | . 7 1 . 2 Targets Rammed 16 | . 8 1 . 7 Kicked 5 | . . . . 5 Crushed 1 | . 1 . . . Highest Temperature 393 | . 348 393 . 181 Average Temperature 92 | . 94 107 . 68 Received Heat Transfer 445 | . 160 140 . 145 Effects 4 | . 3 1 . . Energy Bleed 2 | . 2 . . . Matter Decay 2 | . 1 1 . . Siege Activations . | . . . . . Robots Corrupted . | . . . . . Combat Hostiles . | . . . . . Parts Fried . | . . . . . Impact Corruptions . | . . . . . Robots Melted . | . . . . . Combat Hostiles . | . . . . . Parts Melted 5 | . 3 . . 2 Heat Transferred 4107 | . 1554 1110 . 1443 Parts Sabotaged . | . . . . . Parts Stolen . | . . . . . Parts Stripped . | . . . . . Power Chain Reactions . | . . . . . Alert | -11 -10 -9 -8 -8 ------- Run | Yrd Mat Mat Mat Gar Peak Influence 544 | . 141 544 229 344 Initial 229 | . . 18 229 148 Average 183 | . 29 336 229 275 Maximum Alert Level 2 | . . 2 1 1 Low Security (%) 60 | 100 100 33 . 16 Level 1 23 | . . 22 100 83 Level 2 16 | . . 44 . . Level 3 . | . . . . . Level 4 . | . . . . . Level 5 . | . . . . . High Security . | . . . . . Max Security . | . . . . . Squads Dispatched 4 | . 2 2 . . Investigation 2 | . 1 1 . . Extermination . | . . . . . Reinforcement 2 | . 1 1 . . Assault . | . . . . . Garrison . | . . . . . Intercept . | . . . . . Searches Triggered . | . . . . . Construction Impeded . | . . . . . Haulers Reinforced . | . . . . . Active Scanning Responses . | . . . . . Cargo Convoy Interrupts . | . . . . . Stealth | -11 -10 -9 -8 -8 --------- Run | Yrd Mat Mat Mat Gar Distress Signals 3 | . . 3 . . Communications Jammed . | . . . . . Distress Signals . | . . . . . Times Spotted 59 | . 9 32 . 18 Peak Tracking Total 7 | . 2 7 . 4 Tactical Retreats 2 | . 1 . . 1 Traps | -11 -10 -9 -8 -8 ------- Run | Yrd Mat Mat Mat Gar Traps Triggered 3 | . 2 . . 1 Indirectly . | . . . . . Trap Hack Attempts . | . . . . . Triggered . | . . . . . Disarmed . | . . . . . Reprogrammed 4 | . . 4 . . Reused 1 | . . 1 . . Traps Extracted . | . . . . . Installed . | . . . . . Triggered 1 | . . 1 . . Machines | -11 -10 -9 -8 -8 ---------- Run | Yrd Mat Mat Mat Gar Machines Disabled 3 | . 1 2 . . Max in Single Turn 1 | . 1 1 . . Machines Repaired . | . . . . . Machines Dismantled . | . . . . . Machines Sabotaged . | . . . . . Overloaded Fab Kills . | . . . . . Hacking | -11 -10 -9 -8 -8 --------- Run | Yrd Mat Mat Mat Gar Machines Accessed 7 | . 4 2 1 . Terminals 5 | . 3 2 . . Fabricators . | . . . . . Repair Stations . | . . . . . Recycling Units 1 | . 1 . . . Scanalyzers . | . . . . . Garrison Access 1 | . . . 1 . Total Hacks 23 | . 15 7 1 . Successful 11 | . 5 5 1 . Failed 12 | . 10 2 . . Catastrophic 1 | . 1 . . . Database Lockouts . | . . . . . Manual 5 | . 5 . . . Terminals 20 | . 13 7 . . Fabricators . | . . . . . Repair Stations . | . . . . . Recycling Units 2 | . 2 . . . Scanalyzers . | . . . . . Garrison Access 1 | . . . 1 . Terminal Hacks 10 | . 5 5 . . Emergency Access Points 1 | . 1 . . . Locate Traps 2 | . 1 1 . . Reprogram Traps 2 | . . 2 . . Dispatch Records 1 | . . 1 . . Zone Layout 4 | . 3 1 . . Fabricator Hacks . | . . . . . Repair Station Hacks . | . . . . . Recycling Unit Hacks . | . . . . . Scanalyzer . | . . . . . Garrison Access Hacks 1 | . . . 1 . Unlock Access 1 | . . . 1 . Unauthorized Hacks . | . . . . . Terminals . | . . . . . Fabricators . | . . . . . Repair Stations . | . . . . . Recycling Units . | . . . . . Scanalyzers . | . . . . . Garrison Access . | . . . . . Data Cores Recovered . | . . . . . Used . | . . . . . Hacking Detections 6 | . 4 1 1 . Full Trace Events 3 | . 2 1 . . Feedback Events . | . . . . . Feedback Blocked . | . . . . . Robot Schematics Acquired . | . . . . . Robots Built . | . . . . . Authchips . | . . . . . Time . | . . . . . Total Robot Build Rating . | . . . . . Part Schematics Acquired . | . . . . . Parts Built . | . . . . . Authchips . | . . . . . Time . | . . . . . Total Part Build Rating . | . . . . . Parts Repaired . | . . . . . Time . | . . . . . Parts Recycled . | . . . . . Recycled Matter . | . . . . . Retrieved Matter . | . . . . . Retrieved Components . | . . . . . Parts Scanalyzed . | . . . . . Part Schematics Acquired . | . . . . . Parts Damaged . | . . . . . Bothacking | -11 -10 -9 -8 -8 ------------ Run | Yrd Mat Mat Mat Gar Used RIF Installer . | . . . . . Robots Hacked . | . . . . . Non-combat . | . . . . . Combat . | . . . . . Robot Hacks Applied . | . . . . . Relay Couplers Released . | . . . . . Fabnet Peak Effective % . | . . . . . Robots Rewired . | . . . . . Allies Hacked . | . . . . . Hacks Repelled . | . . . . . Allies | -11 -10 -9 -8 -8 -------- Run | Yrd Mat Mat Mat Gar Total Allies . | . . . . . Largest Group . | . . . . . Highest-Rated Group . | . . . . . Highest-Rated Ally . | . . . . . Total Orders . | . . . . . Ally Attacks . | . . . . . Total Damage . | . . . . . Kills . | . . . . . Allies Corrupted . | . . . . . Allies Melted . | . . . . . Intel | -11 -10 -9 -8 -8 ------- Run | Yrd Mat Mat Mat Gar Robot Analysis Total . | . . . . . Derelict Logs Recovered . | . . . . . Drone Launches . | . . . . . Drone Recoveries . | . . . . . Exploration | -11 -10 -9 -8 -8 ------------- Run | Yrd Mat Mat Mat Gar Turns Passed 2182 | 71 926 791 21 373 Spaces Moved 1246 | 62 475 549 19 141 Core 9 | 7 2 . . . Treads 472 | 1 471 . . . Legs 263 | . . 210 . 53 Wheels 502 | 54 2 339 19 88 Hover . | . . . . . Flight . | . . . . . Fastest Speed 50 | 50 90 90 105 105 Average Speed 129 | 86 159 105 105 144 Slowest Speed 260 | 160 250 120 105 260 Overloaded Moves . | . . . . . Propulsion Burnouts . | . . . . . Robots Hopped . | . . . . . Cave-ins Triggered . | . . . . . Exploration Rate (%) 19 | 5 45 31 5 11 Regions Visited 4 Branch Regions . Pre-discovered Areas . | . . . . . Known Exits Taken 1 | . . . 1 . Unknown Exits Taken 3 | 1 1 1 . . Scrap Searched . | . . . . . Spaces Dug . | . . . . . Terrain Destroyed 54 | . . 38 . 16 Melee . | . . . . . Projectile 8 | . . 6 . 2 AOE 46 | . . 32 . 14 Terrain Rammed . | . . . . . Walls Destroyed . | . . . . . Machines Disabled . | . . . . . Actions | -11 -10 -9 -8 -8 --------- Run | Yrd Mat Mat Mat Gar Total 1560 | 75 563 677 20 225 Wait 57 | . 20 36 . 1 Move 1242 | 61 474 548 18 141 Hop . | . . . . . Pick Up 29 | 6 6 15 1 1 Fast Attach 23 | 6 7 2 . 8 Attach 8 | . . 1 1 6 Detach 2 | . . . . 2 Swap 32 | 2 6 21 . 3 Drop 28 | . 7 16 . 5 Fire 114 | . 35 37 . 42 Melee . | . . . . . Ram 3 | . . 1 . 2 Kick 5 | . . . . 5 Crush 8 | . 8 . . . Escape Stasis 5 | . . . . 5 Rewire 4 | . . . . 4 Trap . | . . . . . Miscellaneous . | . . . . . Route ------- -11/Scrapyard -10/Materials -9/Materials (discovered 2 exits: *Mat / [*Min]) -8/Materials -8/Garrison History --------- Turn | Location | Event 20 | -11/Scrapyard | Discovered new exit (range 16) 72 | -11/Scrapyard | Entered Materials 311 | -10/Materials | Build established: Mutant 490 | -10/Materials | Discovered new exit (range 5) 998 | -10/Materials | Entered another Materials area 998 | -9/Materials | Evolved 2 slots: Utility x1, Weapon x1 1371 | -9/Materials | Build established: Gunner 1423 | -9/Materials | Discovered new exit (range 15) 1505 | -9/Materials | Discovered new exit (range 14) 1789 | -9/Materials | Entered another Materials area 1789 | -8/Materials | Evolved 2 slots: Power x1, Propulsion x1 1807 | -8/Materials | Identified exit to Garrison 1810 | -8/Materials | Entered Garrison 1823 | -8/Garrison | Assembled breached garrison interior 2136 | -8/Garrison | Lost 12 parts (3p1n8w) 2160 | -8/Garrison | Core integrity fell below 50% 2183 | -8/Garrison | Self-destructed Last Messages --------------- 02101_ System corrupted by crushing effect (+3). 02104_ Acquired Prototype Energy Gun. 02104_ Identified Imp. Medium Laser. 02105_ Nuclear Core destroyed. 02105_ System corrupted by crushing effect (+5). 02109_ as-40409 destroyed. 02111_ Acquired 24 matter. 02119_ Acquired Imp. Ion Engine. 02122_ System corrupted: Matter fused (-6). 02128_ Acquired Lgt. Nuclear Core. 02135_ Acquired 26 matter. 02138_ System corrupted: Component data lost. 02162_ System corrupted: Matter fused (-5). 02168_ Imp. Medium Laser destroyed. 02174_ Kicked as-86868. 02175_ Imp. Ion Engine destroyed. 02176_ Critical hit (Destroy). 02176_ Aluminum Leg destroyed. 02177_ Slammed into as-86868. 02180_ Slammed into as-98805. Map ----- +----------------------------------------------------+ | ?????????????????????????????????????????????????? | | ?????????????????????????????????????????????????? | | ?????????????????????????????????????????????????? | | ?????????????????????????????????????????????????? | | ?????????????????????????????????????????????????? | | ?????????????????????????????????????????????????? | | ?????????????????????????????????????????????????? | | ?????????????????????????????????????????????????? | | ?????????????????????????????????????????????????? | | ?????????????????????????????????????????????????? | | ?????????????????????????????????????????????????? | | ????????????????????" ??????????????????????????? | | ???????????????????? ?????????????????????????? | | ???????????????????? ?????????????????????????? | | ????????????????????""""?????????????????????????? | | ????????????????????""""?????????????????????????? | | ????????????????????# ??????????????????????????? | | ????????????????????+ ??????????????????????????? | | ????????????????????# ??????????????????????????? | | ????????????????????#==??????????????????????????? | | ????????????????????#%#??????????????????????????? | | ????????????????????#!#??????????????????????????? | | ????????????????????# #?#####??#######???????????? | | ????????????????????# #?# % #??#"""""#???????????? | | ????????????????????#!### ##### ##???????????? | | ???????????????????## !!@a #???????????? | | ??????????????????## %% aa% #???????????? | | ??????????????????# = ############???????????? | | ?????#####????????###* #?????????????????????? | | ?????# #?????????## % ###?????????????????????? | | ?????# ############ ########????????????????? | | ?????# % ???????????? | | ?????# % ???????????? | | ?????# ???????????? | | ?????############ ####;##############????????????? | | ????????????????# #??# #?????????????????????????? | | ????????????????# ?# #?????????????????????????? | | ???????????????? ## #?????????????????????????? | | ???????????????? ## #?????????????????????????? | | ???????????????# #### ??????????????????????????? | | ???????????????# ??##??????????????????????????? | | ???????????????# ??????????????????????????????? | | ???????????????####??????????????????????????????? | | ?????????????????????????????????????????????????? | | ?????????????????????????????????????????????????? | | ?????????????????????????????????????????????????? | | ?????????????????????????????????????????????????? | | ?????????????????????????????????????????????????? | | ?????????????????????????????????????????????????? | | ?????????????????????????????????????????????????? | +----------------------------------------------------+ Best States ------------- Heat Dissipation 45 Energy Generation 23 Energy Capacity 380 Matter Stores 300 Matter Capacity 400 Sight Range 16 Terrain Scan Density 10 Evasion (%) 55 Targeting Accuracy 6 Recoil Reduction 2 Item Schematics ----------------- None Robot Schematics ------------------ None Fabricated ------------ Nothing Alien Tech Used ----------------- None Achievements -------------- None Challenges ------------ None Game ------ Seed TerrainDimensionalMaul Manual? 0 Play Time 00:25:49 Cumulative 6.9 hours Start 2025.05.05 @ 17:12:53 End 2025.05.05 @ 17:38:02 Sessions 1 Manual Loads 0 Difficulty Rogue Special Mode None Game No. 30 Rogue 30 Adventurer 0 Explorer 0 Win Type - Total 0 Types 0/0/0/0/0/0/0/0/0 Lore% 5 Gallery% 13 Achievement% 10 Wizard Run 0 Options --------- Layout 1 ASCII 0 Keyboard 1 Movement Numpad Keybinds 0 Fullscreen 1 Font 24/Smallcaps Map View 50x35 Zoom Use 0% Tactical HUD 1 Map Filters NONE Filters NONE Steam 1 RUN: dcc73a0c-8b00-415c-93cb-a5648dbbab79